[Event "*** Titled Tuesday Blitz"]
[Site "Chess.com"]
[Date "2020.04.21"]
[Round "6"]
[White "MrVenky"]
[Black "Sharpchess22"]
[Result "0-1"]
[WhiteElo "2541"]
[BlackElo "2755"]
[TimeControl "180+1"]
[EndTime "11:07:17 PDT"]
[Termination "Sharpchess22 won by resignation"]

1. Nf3 {[%clk 0:03:00.9]} 1... Nf6 {[%clk 0:02:59.6]} 2. g3 {[%clk 0:03:00.6]}
2... g6 {[%clk 0:02:59.3]} 3. Bg2 {[%clk 0:03:00.5]} 3... Bg7 {[%clk 0:03:00.2]}
4. d3 {[%clk 0:02:59.8]} 4... O-O {[%clk 0:03:01.1]} 5. e4 {[%clk 0:02:58.4]}
5... d5 {[%clk 0:03:02]} 6. Nbd2 {[%clk 0:02:55.4]} 6... c5 {[%clk 0:03:01.1]}
7. O-O {[%clk 0:02:55.2]} 7... Nc6 {[%clk 0:03:01.3]} 8. Re1 {[%clk 0:02:54.9]}
8... e5 {[%clk 0:03:00.2]} 9. c3 {[%clk 0:02:54.1]} 9... d4 {[%clk 0:02:57]} 10.
Nc4 {[%clk 0:02:51.8]} 10... Re8 {[%clk 0:02:56.5]} 11. a4 {[%clk 0:02:51.2]}
11... h6 {[%clk 0:02:55]} 12. cxd4 {[%clk 0:02:43.6]} 12... cxd4 {[%clk
0:02:54.4]} 13. Bd2 {[%clk 0:02:37.2]} 13... a5 {[%clk 0:02:50.7]} 14. Qb3
{[%clk 0:02:15.2]} 14... Ra6 {[%clk 0:02:50.2]} 15. Rac1 {[%clk 0:02:12.1]}
15... Bf8 {[%clk 0:02:49.9]} 16. Qb5 {[%clk 0:02:03]} 16... Nd7 {[%clk
0:02:47.4]} 17. Bh3 {[%clk 0:01:52.9]} 17... f6 {[%clk 0:02:10.9]} 18. Nd6
{[%clk 0:01:36.1]} 18... Bxd6 {[%clk 0:02:07.9]} 19. Qd5+ {[%clk 0:01:33.3]}
19... Kg7 {[%clk 0:02:06.1]} 20. Qxd6 {[%clk 0:01:32.5]} 20... Nb4 {[%clk
0:01:39.6]} 21. Qc7 {[%clk 0:01:25.8]} 21... Nxd3 {[%clk 0:01:39.3]} 22. Bxd7
{[%clk 0:01:19]} 22... Qxd7 {[%clk 0:01:28.9]} 23. Qxd7+ {[%clk 0:01:18]} 23...
Bxd7 {[%clk 0:01:29.8]} 24. Rc7 {[%clk 0:01:17.7]} 24... Rd6 {[%clk 0:01:22.4]}
25. Ra1 {[%clk 0:01:15.7]} 25... b6 {[%clk 0:01:21.4]} 26. b3 {[%clk 0:01:07.2]}
26... Rc8 {[%clk 0:01:20.9]} 27. Rb7 {[%clk 0:01:05.2]} 27... Rc2 {[%clk
0:01:15.8]} 28. Kf1 {[%clk 0:01:04.1]} 28... Nc5 {[%clk 0:01:14.9]} 29. Ra7
{[%clk 0:01:01.1]} 29... Nxb3 {[%clk 0:01:14.8]} 30. Rd1 {[%clk 0:00:58.4]}
30... g5 {[%clk 0:01:11.7]} 31. Ke2 {[%clk 0:00:56.2]} 31... Kg6 {[%clk
0:01:06.1]} 32. Kd3 {[%clk 0:00:51.5]} 32... Rc8 {[%clk 0:01:05.4]} 33. Rb1
{[%clk 0:00:48.5]} 33... Bxa4 {[%clk 0:01:04.5]} 0-1

[Event "*** Titled Tuesday Blitz"]
[Site "Chess.com"]
[Date "2020.04.21"]
[Round "6"]
[White "Gajuchess"]
[Black "StegariuVlad"]
[Result "1-0"]
[WhiteElo "2722"]
[BlackElo "2514"]
[TimeControl "180+1"]
[EndTime "11:07:20 PDT"]
[Termination "Gajuchess won by resignation"]

1. Nf3 {[%clk 0:03:00.6]} 1... d5 {[%clk 0:02:57.4]} 2. g3 {[%clk 0:03:01.5]}
2... Nf6 {[%clk 0:02:56.2]} 3. Bg2 {[%clk 0:03:01.1]} 3... c6 {[%clk 0:02:56]}
4. O-O {[%clk 0:03:01.7]} 4... Bf5 {[%clk 0:02:55.6]} 5. d3 {[%clk 0:03:02.6]}
5... h6 {[%clk 0:02:55.6]} 6. c4 {[%clk 0:03:01.6]} 6... e6 {[%clk 0:02:55.5]}
7. Nc3 {[%clk 0:03:00.1]} 7... Be7 {[%clk 0:02:54.4]} 8. cxd5 {[%clk 0:02:58.8]}
8... exd5 {[%clk 0:02:49.2]} 9. Qb3 {[%clk 0:02:58.1]} 9... Qb6 {[%clk
0:02:48.5]} 10. Qc2 {[%clk 0:02:58.9]} 10... O-O {[%clk 0:02:46.8]} 11. e4
{[%clk 0:02:57.8]} 11... dxe4 {[%clk 0:02:45.6]} 12. dxe4 {[%clk 0:02:58.7]}
12... Bh7 {[%clk 0:02:46.1]} 13. Be3 {[%clk 0:02:58.1]} 13... Qb4 {[%clk
0:02:40.9]} 14. a3 {[%clk 0:02:47.9]} 14... Bxe4 {[%clk 0:02:31.6]} 15. axb4
{[%clk 0:02:43.7]} 15... Bxc2 {[%clk 0:02:31]} 16. Nd4 {[%clk 0:02:40.8]} 16...
Bg6 {[%clk 0:02:05.4]} 17. b5 {[%clk 0:02:40.7]} 17... Ng4 {[%clk 0:01:33.2]}
18. Bf4 {[%clk 0:02:35.8]} 18... Bf6 {[%clk 0:01:25.9]} 19. Rfd1 {[%clk
0:02:34]} 19... Rd8 {[%clk 0:01:14.8]} 20. bxc6 {[%clk 0:02:27.4]} 20... Nxc6
{[%clk 0:01:11.4]} 21. Nxc6 {[%clk 0:02:27]} 21... bxc6 {[%clk 0:01:09.7]} 22.
Bxc6 {[%clk 0:02:27.3]} 22... Rxd1+ {[%clk 0:01:08.6]} 23. Rxd1 {[%clk
0:02:22.3]} 23... Rc8 {[%clk 0:01:08.2]} 24. Bd7 {[%clk 0:02:19.3]} 24... Rc5
{[%clk 0:00:41.8]} 25. Bxg4 {[%clk 0:02:18.3]} 25... Bxc3 {[%clk 0:00:41.9]} 26.
bxc3 {[%clk 0:02:17]} 26... Rxc3 {[%clk 0:00:42.3]} 27. Ra1 {[%clk 0:02:10.9]}
27... Be4 {[%clk 0:00:37.3]} 28. Rxa7 {[%clk 0:02:09.3]} 28... Rb3 {[%clk
0:00:31.1]} 29. Ra1 {[%clk 0:02:06.1]} 29... Rb1+ {[%clk 0:00:29.4]} 30. Rxb1
{[%clk 0:02:05.7]} 30... Bxb1 {[%clk 0:00:30.3]} 31. h4 {[%clk 0:02:02.8]} 31...
Kh7 {[%clk 0:00:28.6]} 32. Kf1 {[%clk 0:02:02]} 32... g6 {[%clk 0:00:28.1]} 33.
Ke2 {[%clk 0:02:00.8]} 33... f6 {[%clk 0:00:27.9]} 34. Bd2 {[%clk 0:01:57.6]}
34... Kg7 {[%clk 0:00:25]} 35. Ke3 {[%clk 0:01:57.2]} 35... Ba2 {[%clk 0:00:25]}
36. Kd4 {[%clk 0:01:56.3]} 36... Bb1 {[%clk 0:00:24.6]} 37. Kd5 {[%clk
0:01:54.8]} 37... Ba2+ {[%clk 0:00:24.3]} 38. Kd6 {[%clk 0:01:54.7]} 38... h5
{[%clk 0:00:24.1]} 39. Be6 {[%clk 0:01:53.5]} 39... Bb1 {[%clk 0:00:17.6]} 40.
Bc3 {[%clk 0:01:52.1]} 1-0

[Event "*** Titled Tuesday Blitz"]
[Site "Chess.com"]
[Date "2020.04.21"]
[Round "6"]
[White "NTBT_DHS"]
[Black "hellokostya"]
[Result "1-0"]
[WhiteElo "2627"]
[BlackElo "2475"]
[TimeControl "180+1"]
[EndTime "11:07:20 PDT"]
[Termination "NTBT_DHS won by resignation"]

1. d4 {[%clk 0:03:00.9]} 1... Nf6 {[%clk 0:02:58.1]} 2. Nc3 {[%clk 0:02:59.3]}
2... d5 {[%clk 0:02:56.9]} 3. Bg5 {[%clk 0:02:59]} 3... e6 {[%clk 0:02:50.9]} 4.
e4 {[%clk 0:02:59.1]} 4... Be7 {[%clk 0:02:50.2]} 5. e5 {[%clk 0:02:59.1]} 5...
Nfd7 {[%clk 0:02:49.9]} 6. Bxe7 {[%clk 0:03:00]} 6... Qxe7 {[%clk 0:02:49.5]} 7.
f4 {[%clk 0:03:00.9]} 7... a6 {[%clk 0:02:49.1]} 8. Nf3 {[%clk 0:02:59.3]} 8...
c5 {[%clk 0:02:49.4]} 9. Qd2 {[%clk 0:02:59.9]} 9... Nc6 {[%clk 0:02:49.3]} 10.
O-O-O {[%clk 0:03:00.4]} 10... b5 {[%clk 0:02:48]} 11. Qe3 {[%clk 0:02:57]}
11... b4 {[%clk 0:02:43.1]} 12. Na4 {[%clk 0:02:55.3]} 12... c4 {[%clk
0:02:37.8]} 13. b3 {[%clk 0:02:49.3]} 13... c3 {[%clk 0:02:25.6]} 14. g4 {[%clk
0:02:48.8]} 14... Na7 {[%clk 0:02:04.2]} 15. f5 {[%clk 0:02:44.5]} 15... Nb5
{[%clk 0:02:03.2]} 16. h4 {[%clk 0:02:35.5]} 16... Na3 {[%clk 0:01:56.1]} 17.
Bd3 {[%clk 0:02:11.1]} 17... Bb7 {[%clk 0:01:54.7]} 18. fxe6 {[%clk 0:02:03.3]}
18... fxe6 {[%clk 0:01:53.2]} 19. Ng5 {[%clk 0:02:03.9]} 19... O-O-O {[%clk
0:01:41.9]} 20. Rdf1 {[%clk 0:01:58.7]} 20... Rdf8 {[%clk 0:01:39.4]} 21. Rxf8+
{[%clk 0:01:38.4]} 21... Nxf8 {[%clk 0:01:29.9]} 22. Rf1 {[%clk 0:01:36.3]}
22... h6 {[%clk 0:01:24.8]} 23. Nf7 {[%clk 0:01:34.6]} 23... Rg8 {[%clk
0:01:07]} 24. Nd6+ {[%clk 0:01:33.6]} 24... Kb8 {[%clk 0:01:06.4]} 25. Rf7
{[%clk 0:01:29.1]} 25... Qxf7 {[%clk 0:00:41.7]} 26. Nxf7 {[%clk 0:01:30]} 26...
Nd7 {[%clk 0:00:41.6]} 27. g5 {[%clk 0:01:25.5]} 27... hxg5 {[%clk 0:00:39.7]}
28. hxg5 {[%clk 0:01:26.4]} 28... g6 {[%clk 0:00:38.8]} 29. Qh3 {[%clk
0:01:25.5]} 29... Nf8 {[%clk 0:00:27.5]} 30. Qh6 {[%clk 0:01:21.4]} 30... Bc6
{[%clk 0:00:24.1]} 31. Nc5 {[%clk 0:01:21.4]} 31... Be8 {[%clk 0:00:23]} 32. Nd6
{[%clk 0:01:18.5]} 32... Bc6 {[%clk 0:00:22.6]} 33. Nxa6+ {[%clk 0:01:15.6]}
33... Ka7 {[%clk 0:00:21.4]} 34. Nxb4 {[%clk 0:01:15.7]} 1-0

[Event "*** Titled Tuesday Blitz"]
[Site "Chess.com"]
[Date "2020.04.21"]
[Round "6"]
[White "YPradafah"]
[Black "Jenia84"]
[Result "1-0"]
[WhiteElo "2470"]
[BlackElo "2298"]
[TimeControl "180+1"]
[EndTime "11:07:23 PDT"]
[Termination "YPradafah won by checkmate"]

1. d4 {[%clk 0:03:00.9]} 1... Nf6 {[%clk 0:02:59.3]} 2. c4 {[%clk 0:03:00.1]}
2... e6 {[%clk 0:02:59.5]} 3. Nf3 {[%clk 0:02:52.5]} 3... b6 {[%clk 0:02:57.6]}
4. g3 {[%clk 0:02:51.2]} 4... Bb7 {[%clk 0:02:57.4]} 5. Bg2 {[%clk 0:02:51.2]}
5... Be7 {[%clk 0:02:57.9]} 6. O-O {[%clk 0:02:51.5]} 6... O-O {[%clk
0:02:57.7]} 7. Nc3 {[%clk 0:02:52.1]} 7... Ne4 {[%clk 0:02:55.9]} 8. Bd2 {[%clk
0:02:52.4]} 8... d6 {[%clk 0:02:47.8]} 9. Rc1 {[%clk 0:02:45.7]} 9... Nd7 {[%clk
0:02:44.8]} 10. Nxe4 {[%clk 0:02:39]} 10... Bxe4 {[%clk 0:02:43.4]} 11. Bc3
{[%clk 0:02:39.9]} 11... Rc8 {[%clk 0:02:39.6]} 12. b4 {[%clk 0:02:38.3]} 12...
c5 {[%clk 0:02:38.4]} 13. dxc5 {[%clk 0:02:34.8]} 13... dxc5 {[%clk 0:02:33.1]}
14. b5 {[%clk 0:02:27]} 14... Bf6 {[%clk 0:02:29.8]} 15. Qd2 {[%clk 0:02:14.5]}
15... Bxc3 {[%clk 0:02:25.4]} 16. Qxc3 {[%clk 0:02:01.2]} 16... Nf6 {[%clk
0:02:19.6]} 17. Rfd1 {[%clk 0:01:59.2]} 17... Qc7 {[%clk 0:02:11.7]} 18. Bh3
{[%clk 0:01:51.9]} 18... Rfd8 {[%clk 0:02:08.1]} 19. Qe5 {[%clk 0:01:42]} 19...
Qxe5 {[%clk 0:01:39.1]} 20. Nxe5 {[%clk 0:01:40.7]} 20... Kf8 {[%clk 0:01:39]}
21. Bg2 {[%clk 0:01:30]} 21... Bxg2 {[%clk 0:01:29.5]} 22. Kxg2 {[%clk
0:01:30.9]} 22... Ke8 {[%clk 0:01:18.7]} 23. f3 {[%clk 0:01:24.7]} 23... Rxd1
{[%clk 0:01:12.6]} 24. Rxd1 {[%clk 0:01:23.3]} 24... Rc7 {[%clk 0:01:12.4]} 25.
Nc6 {[%clk 0:01:01.1]} 25... Nd7 {[%clk 0:01:11.4]} 26. a4 {[%clk 0:00:57.2]}
26... a6 {[%clk 0:00:55.6]} 27. e4 {[%clk 0:00:54.4]} 27... a5 {[%clk
0:00:44.1]} 28. f4 {[%clk 0:00:51.7]} 28... Rb7 {[%clk 0:00:42.8]} 29. Rd6
{[%clk 0:00:46]} 29... Nb8 {[%clk 0:00:37.1]} 30. Rd8# {[%clk 0:00:44.7]} 1-0

[Event "*** Titled Tuesday Blitz"]
[Site "Chess.com"]
[Date "2020.04.21"]
[Round "6"]
[White "UmutErdemGunduz"]
[Black "zurzan"]
[Result "0-1"]
[WhiteElo "2355"]
[BlackElo "2019"]
[TimeControl "180+1"]
[EndTime "11:07:28 PDT"]
[Termination "zurzan won on time"]

1. e4 {[%clk 0:03:00.9]} 1... Nf6 {[%clk 0:02:59]} 2. e5 {[%clk 0:02:59.9]} 2...
Nd5 {[%clk 0:02:59.1]} 3. d4 {[%clk 0:03:00.1]} 3... d6 {[%clk 0:02:59]} 4. Nf3
{[%clk 0:02:59.7]} 4... g6 {[%clk 0:02:57.7]} 5. Bc4 {[%clk 0:02:57.2]} 5... Nb6
{[%clk 0:02:57.5]} 6. Bb3 {[%clk 0:02:57.4]} 6... Bg7 {[%clk 0:02:57.2]} 7. Ng5
{[%clk 0:02:57.8]} 7... O-O {[%clk 0:02:56.3]} 8. Qf3 {[%clk 0:02:57.2]} 8... e6
{[%clk 0:02:53.6]} 9. Qh3 {[%clk 0:02:37.8]} 9... h6 {[%clk 0:02:45.3]} 10. Nf3
{[%clk 0:02:25.5]} 10... Nc6 {[%clk 0:02:38.5]} 11. Bxh6 {[%clk 0:02:15]} 11...
dxe5 {[%clk 0:02:36.2]} 12. Bxg7 {[%clk 0:02:11.6]} 12... Kxg7 {[%clk 0:02:36]}
13. dxe5 {[%clk 0:02:11.6]} 13... Nd4 {[%clk 0:02:26.7]} 14. O-O {[%clk
0:02:02.5]} 14... Nxf3+ {[%clk 0:02:25.8]} 15. Qxf3 {[%clk 0:02:00.9]} 15... Qg5
{[%clk 0:02:14.4]} 16. Re1 {[%clk 0:01:57.5]} 16... Nd7 {[%clk 0:02:09.9]} 17.
Qe2 {[%clk 0:01:39.3]} 17... b6 {[%clk 0:02:01.5]} 18. Qe4 {[%clk 0:00:58.5]}
18... Ba6 {[%clk 0:01:58.2]} 19. Nc3 {[%clk 0:00:53.9]} 19... Nc5 {[%clk
0:01:55.3]} 20. Qe3 {[%clk 0:00:41.5]} 20... Bb7 {[%clk 0:01:53.2]} 21. f3
{[%clk 0:00:29.2]} 21... Qxe3+ {[%clk 0:01:47.8]} 22. Rxe3 {[%clk 0:00:26.6]}
22... Rad8 {[%clk 0:01:38.1]} 23. Kf2 {[%clk 0:00:17.9]} 23... Rd2+ {[%clk
0:01:35.8]} 24. Re2 {[%clk 0:00:17.9]} 24... Rfd8 {[%clk 0:01:35.6]} 25. Re1
{[%clk 0:00:14.8]} 25... Ba6 {[%clk 0:01:30.5]} 26. Rxd2 {[%clk 0:00:10.3]}
26... Rxd2+ {[%clk 0:01:31.4]} 27. Ne2 {[%clk 0:00:02.9]} 27... Nxb3 {[%clk
0:01:30.1]} 28. axb3 {[%clk 0:00:01.8]} 28... Rxc2 {[%clk 0:01:30.1]} 29. Ke3
{[%clk 0:00:02]} 29... Rxb2 {[%clk 0:01:29.5]} 30. Nd4 {[%clk 0:00:02.2]} 30...
c5 {[%clk 0:01:20.3]} 0-1

[Event "*** Titled Tuesday Blitz"]
[Site "Chess.com"]
[Date "2020.04.21"]
[Round "6"]
[White "francyIM"]
[Black "BursaBBSatranc"]
[Result "0-1"]
[WhiteElo "2683"]
[BlackElo "2521"]
[TimeControl "180+1"]
[EndTime "11:07:30 PDT"]
[Termination "BursaBBSatranc won by resignation"]

1. c4 {[%clk 0:03:00.9]} 1... c6 {[%clk 0:03:00]} 2. d4 {[%clk 0:03:00]} 2... d5
{[%clk 0:03:00.9]} 3. Nf3 {[%clk 0:03:00.6]} 3... Nf6 {[%clk 0:03:01.1]} 4. e3
{[%clk 0:02:59.8]} 4... Bf5 {[%clk 0:03:00.7]} 5. Nc3 {[%clk 0:02:59.2]} 5... e6
{[%clk 0:03:01]} 6. Nh4 {[%clk 0:02:58.6]} 6... Bg6 {[%clk 0:03:01.2]} 7. Bd2
{[%clk 0:02:56.4]} 7... Nbd7 {[%clk 0:03:00.8]} 8. Nxg6 {[%clk 0:02:55.8]} 8...
hxg6 {[%clk 0:03:00.7]} 9. h3 {[%clk 0:02:55.7]} 9... Bd6 {[%clk 0:03:00.3]} 10.
Qb3 {[%clk 0:02:52.8]} 10... Rb8 {[%clk 0:02:48.2]} 11. O-O-O {[%clk 0:02:44.5]}
11... a6 {[%clk 0:02:37.2]} 12. Kb1 {[%clk 0:02:43.7]} 12... dxc4 {[%clk
0:02:32.7]} 13. Bxc4 {[%clk 0:02:44.6]} 13... b5 {[%clk 0:02:32.9]} 14. Be2
{[%clk 0:02:44.6]} 14... c5 {[%clk 0:02:30.7]} 15. dxc5 {[%clk 0:02:43.6]} 15...
Nxc5 {[%clk 0:02:29.8]} 16. Qc2 {[%clk 0:02:43.4]} 16... O-O {[%clk 0:02:23.9]}
17. h4 {[%clk 0:02:42.8]} 17... b4 {[%clk 0:02:15.7]} 18. Na4 {[%clk 0:02:42.2]}
18... b3 {[%clk 0:02:12.5]} 19. axb3 {[%clk 0:02:41.6]} 19... Nxb3 {[%clk
0:02:04.3]} 20. Bc3 {[%clk 0:02:36.4]} 20... Nd5 {[%clk 0:01:47.9]} 21. Bc4
{[%clk 0:02:33.1]} 21... Nxc3+ {[%clk 0:01:30.9]} 22. Qxc3 {[%clk 0:02:34]}
22... Na5 {[%clk 0:01:21.5]} 23. Be2 {[%clk 0:02:14.4]} 23... Rb3 {[%clk
0:00:56.3]} 24. Rxd6 {[%clk 0:02:13.2]} 24... Qxd6 {[%clk 0:00:51.9]} 25. Qxa5
{[%clk 0:02:13.2]} 25... Rfb8 {[%clk 0:00:48.8]} 26. Rc1 {[%clk 0:02:12.4]}
26... Qa3 {[%clk 0:00:43.7]} 27. Kc2 {[%clk 0:01:40.7]} 27... Rxb2+ {[%clk
0:00:37.2]} 28. Kd1 {[%clk 0:01:40.9]} 28... Rxe2 {[%clk 0:00:25.6]} 29. Kxe2
{[%clk 0:01:21.5]} 29... Qxc1 {[%clk 0:00:25.2]} 30. Qxa6 {[%clk 0:01:21.9]}
30... Qc2+ {[%clk 0:00:20.9]} 31. Kf3 {[%clk 0:01:22.1]} 31... Qf5+ {[%clk
0:00:20.1]} 32. Kg3 {[%clk 0:01:22.4]} 32... Qe5+ {[%clk 0:00:18.6]} 33. Kf3
{[%clk 0:01:21.6]} 33... Rb4 {[%clk 0:00:16.4]} 34. Qc8+ {[%clk 0:01:21.2]}
34... Kh7 {[%clk 0:00:15.7]} 35. Nc5 {[%clk 0:01:21.6]} 35... Rc4 {[%clk
0:00:14.9]} 0-1

[Event "*** Titled Tuesday Blitz"]
[Site "Chess.com"]
[Date "2020.04.21"]
[Round "6"]
[White "sergeikim"]
[Black "Korchmar_Vasiliy"]
[Result "0-1"]
[WhiteElo "2426"]
[BlackElo "2590"]
[TimeControl "180+1"]
[EndTime "11:07:33 PDT"]
[Termination "Korchmar_Vasiliy won by resignation"]

1. d4 {[%clk 0:03:00.9]} 1... Nf6 {[%clk 0:02:59.8]} 2. c4 {[%clk 0:03:00.7]}
2... e6 {[%clk 0:03:00]} 3. Nc3 {[%clk 0:03:00.6]} 3... Bb4 {[%clk 0:02:59.4]}
4. Qc2 {[%clk 0:03:00.6]} 4... b6 {[%clk 0:02:58.6]} 5. a3 {[%clk 0:03:00.5]}
5... Bxc3+ {[%clk 0:02:58.1]} 6. Qxc3 {[%clk 0:03:00.6]} 6... Bb7 {[%clk
0:02:57.7]} 7. Nf3 {[%clk 0:02:59.6]} 7... O-O {[%clk 0:02:57]} 8. g3 {[%clk
0:02:59.2]} 8... Ne4 {[%clk 0:02:39.5]} 9. Qc2 {[%clk 0:02:58.5]} 9... d6 {[%clk
0:02:39.2]} 10. Bg2 {[%clk 0:02:58.9]} 10... f5 {[%clk 0:02:35.9]} 11. O-O
{[%clk 0:02:59.1]} 11... Nd7 {[%clk 0:02:35.1]} 12. Ng5 {[%clk 0:02:59.1]} 12...
Nxg5 {[%clk 0:02:22.4]} 13. Bxb7 {[%clk 0:02:57.3]} 13... Rb8 {[%clk 0:02:22.9]}
14. Bg2 {[%clk 0:02:56.6]} 14... Qe7 {[%clk 0:02:12.9]} 15. b4 {[%clk
0:02:53.2]} 15... Rf7 {[%clk 0:02:03]} 16. f4 {[%clk 0:02:32.4]} 16... Ne4
{[%clk 0:02:02.6]} 17. Bxe4 {[%clk 0:02:31.7]} 17... fxe4 {[%clk 0:02:03.5]} 18.
Qxe4 {[%clk 0:02:31.5]} 18... Nf6 {[%clk 0:02:04]} 19. Qd3 {[%clk 0:02:28.1]}
19... d5 {[%clk 0:02:04.2]} 20. Bd2 {[%clk 0:02:15.9]} 20... Ne4 {[%clk
0:02:04]} 21. Rac1 {[%clk 0:02:11.7]} 21... Rbf8 {[%clk 0:01:59.5]} 22. Be3
{[%clk 0:02:01.8]} 22... h5 {[%clk 0:01:57.7]} 23. Rf3 {[%clk 0:01:58.8]} 23...
Qf6 {[%clk 0:01:55.2]} 24. Rcf1 {[%clk 0:01:56.7]} 24... Qg6 {[%clk 0:01:55.6]}
25. Kh1 {[%clk 0:01:44.4]} 25... Qg4 {[%clk 0:01:45.4]} 26. cxd5 {[%clk
0:01:37.7]} 26... exd5 {[%clk 0:01:46.3]} 27. Qb5 {[%clk 0:01:37.2]} 27... Rf5
{[%clk 0:01:28.7]} 28. Qc6 {[%clk 0:01:33.8]} 28... R8f7 {[%clk 0:01:27.5]} 29.
Qe8+ {[%clk 0:00:52.7]} 29... Kh7 {[%clk 0:01:27.2]} 30. Qc6 {[%clk 0:00:49.1]}
30... Qh3 {[%clk 0:01:27.2]} 31. Qe6 {[%clk 0:00:43.1]} 31... Nxg3+ {[%clk
0:01:18]} 32. Rxg3 {[%clk 0:00:42.3]} 32... Qxf1+ {[%clk 0:01:17.5]} 33. Rg1
{[%clk 0:00:42.7]} 33... Qxe2 {[%clk 0:01:08.7]} 0-1

[Event "*** Titled Tuesday Blitz"]
[Site "Chess.com"]
[Date "2020.04.21"]
[Round "6"]
[White "DDTerziev04"]
[Black "Stormeman100100"]
[Result "0-1"]
[WhiteElo "2288"]
[BlackElo "2452"]
[TimeControl "180+1"]
[EndTime "11:07:33 PDT"]
[Termination "Stormeman100100 won by resignation"]

1. e4 {[%clk 0:03:00.9]} 1... c5 {[%clk 0:02:59]} 2. Nf3 {[%clk 0:02:59.8]} 2...
Nc6 {[%clk 0:02:59.2]} 3. Bb5 {[%clk 0:02:58.9]} 3... d6 {[%clk 0:02:59.2]} 4.
O-O {[%clk 0:02:55.4]} 4... Bd7 {[%clk 0:02:59.4]} 5. Re1 {[%clk 0:02:54.9]}
5... Nf6 {[%clk 0:02:59.1]} 6. c3 {[%clk 0:02:54.1]} 6... a6 {[%clk 0:02:59.1]}
7. Bf1 {[%clk 0:02:53.5]} 7... Bg4 {[%clk 0:02:57.9]} 8. d3 {[%clk 0:02:51.2]}
8... g6 {[%clk 0:02:56.7]} 9. h3 {[%clk 0:02:49.8]} 9... Bxf3 {[%clk 0:02:56.5]}
10. Qxf3 {[%clk 0:02:48.6]} 10... Bg7 {[%clk 0:02:57.1]} 11. Bf4 {[%clk
0:02:46.3]} 11... O-O {[%clk 0:02:55.4]} 12. Nd2 {[%clk 0:02:45.1]} 12... Nd7
{[%clk 0:02:54.3]} 13. a4 {[%clk 0:02:39.3]} 13... b5 {[%clk 0:02:53]} 14. axb5
{[%clk 0:02:24.7]} 14... axb5 {[%clk 0:02:53.9]} 15. Qe2 {[%clk 0:02:07.2]}
15... Qb6 {[%clk 0:02:50.8]} 16. Nf3 {[%clk 0:02:02.5]} 16... b4 {[%clk
0:02:49.2]} 17. c4 {[%clk 0:02:00.1]} 17... b3 {[%clk 0:02:42.9]} 18. g4 {[%clk
0:01:21]} 18... Ra2 {[%clk 0:02:32.7]} 19. Rab1 {[%clk 0:01:20.3]} 19... Nb4
{[%clk 0:02:07.1]} 20. e5 {[%clk 0:01:19.9]} 20... dxe5 {[%clk 0:01:50.4]} 21.
Nxe5 {[%clk 0:01:19]} 21... Nxe5 {[%clk 0:01:45.2]} 22. Bxe5 {[%clk 0:01:18.9]}
22... Bxe5 {[%clk 0:01:44.6]} 23. Qxe5 {[%clk 0:01:19.8]} 23... e6 {[%clk
0:01:42.3]} 24. h4 {[%clk 0:01:05.9]} 24... Nc2 {[%clk 0:01:34.9]} 25. Re4
{[%clk 0:00:31.5]} 25... Nd4 {[%clk 0:01:31.3]} 26. Rf4 {[%clk 0:00:28.4]} 26...
Qb8 {[%clk 0:01:21.8]} 27. Qf6 {[%clk 0:00:25.4]} 27... e5 {[%clk 0:01:16.5]}
28. Re4 {[%clk 0:00:23.4]} 28... Re8 {[%clk 0:01:11.3]} 29. h5 {[%clk
0:00:20.3]} 29... Re6 {[%clk 0:01:10]} 0-1

[Event "*** Titled Tuesday Blitz"]
[Site "Chess.com"]
[Date "2020.04.21"]
[Round "6"]
[White "GadimbayliA"]
[Black "Disturbed01"]
[Result "1-0"]
[WhiteElo "2925"]
[BlackElo "2659"]
[TimeControl "180+1"]
[EndTime "11:07:34 PDT"]
[Termination "GadimbayliA won by resignation"]

1. e4 {[%clk 0:03:00.9]} 1... c5 {[%clk 0:03:00.1]} 2. Nf3 {[%clk 0:03:00.7]}
2... Nc6 {[%clk 0:03:00.7]} 3. Bb5 {[%clk 0:03:00.4]} 3... d6 {[%clk 0:02:59.2]}
4. Bxc6+ {[%clk 0:03:00.2]} 4... bxc6 {[%clk 0:03:00.1]} 5. O-O {[%clk
0:03:00.4]} 5... e5 {[%clk 0:03:00]} 6. c3 {[%clk 0:03:00.2]} 6... f5 {[%clk
0:02:56.2]} 7. exf5 {[%clk 0:03:00.7]} 7... e4 {[%clk 0:02:54.9]} 8. Re1 {[%clk
0:03:00.7]} 8... Bxf5 {[%clk 0:02:53.3]} 9. d3 {[%clk 0:02:58.4]} 9... d5 {[%clk
0:02:43.5]} 10. dxe4 {[%clk 0:02:58.5]} 10... dxe4 {[%clk 0:02:42.2]} 11. Qa4
{[%clk 0:02:55.8]} 11... Qc7 {[%clk 0:02:38.6]} 12. Nbd2 {[%clk 0:02:54.9]}
12... Nf6 {[%clk 0:02:31.8]} 13. Nh4 {[%clk 0:02:48.9]} 13... Bg6 {[%clk
0:02:22.8]} 14. Nxg6 {[%clk 0:02:42.1]} 14... hxg6 {[%clk 0:02:23.7]} 15. h3
{[%clk 0:02:33.9]} 15... O-O-O {[%clk 0:01:53.4]} 16. Nxe4 {[%clk 0:02:33.4]}
16... Nd5 {[%clk 0:01:53.6]} 17. Ng5 {[%clk 0:02:28.7]} 17... Bd6 {[%clk
0:01:22.2]} 18. Ne6 {[%clk 0:02:26.2]} 18... Rde8 {[%clk 0:01:22.4]} 19. Bg5
{[%clk 0:02:10.9]} 19... Qd7 {[%clk 0:01:20.7]} 20. Nf4 {[%clk 0:02:01.3]} 20...
Bxf4 {[%clk 0:01:20]} 21. Bxf4 {[%clk 0:01:59.4]} 21... Kb7 {[%clk 0:01:20.3]}
22. Bg3 {[%clk 0:01:56.6]} 22... g5 {[%clk 0:01:17.8]} 23. Qc4 {[%clk
0:01:50.1]} 23... Qf7 {[%clk 0:00:46.2]} 24. Qxc5 {[%clk 0:01:37.6]} 24... g4
{[%clk 0:00:43.4]} 25. c4 {[%clk 0:01:33.7]} 25... Nb6 {[%clk 0:00:33.8]} 26.
hxg4 {[%clk 0:01:33.5]} 26... g6 {[%clk 0:00:30.4]} 27. a4 {[%clk 0:01:07.9]}
27... Qh7 {[%clk 0:00:24.4]} 28. f3 {[%clk 0:01:06.9]} 28... Qh1+ {[%clk
0:00:14.5]} 29. Kf2 {[%clk 0:01:06.6]} 29... Qh7 {[%clk 0:00:15.1]} 30. a5
{[%clk 0:01:04.6]} 30... Nc8 {[%clk 0:00:15.2]} 31. a6+ {[%clk 0:01:04]} 31...
Ka8 {[%clk 0:00:15.5]} 32. Qxc6+ {[%clk 0:01:04.3]} 1-0